fUSD/lending_fUSD_20240114
["ID","MTS","AMOUNT","RATE_DAILY","PERIOD"]
[311622838,1705265557455,-675.0,0.00034246,2]
[311622839,1705265557464,-500.0,0.00034246,2]
[311622840,1705265557476,-500.0,0.00034246,2]
[311622841,1705265557486,-679.48,0.00034246,2]
[311622842,1705265557496,-886.22,0.00034246,2]
[311622843,1705265557507,-698.99,0.00034246,2]
[311622844,1705265557518,-567.27,0.00034246,2]
[311622845,1705265557527,-1207.58,0.00034246,2]
[311622846,1705265557537,-692.03,0.00034246,2]
[311622847,1705265557546,-4337.15,0.00034246,2]
[311622848,1705265557556,-1455.02,0.00034246,2]
[311622849,1705265557567,-718.79,0.00034246,2]
[311622850,1705265557577,-852.88,0.00034246,2]
[311622851,1705265557586,-500.0,0.00034246,2]
[311622852,1705265557596,-500.0,0.00034246,2]
[311622853,1705265557605,-500.0,0.00034246,2]
[311622854,1705265557615,-902.9,0.00034246,2]
[311622855,1705265557625,-500.0,0.00034246,2]
[311622856,1705265557635,-500.0,0.00034246,5]
[311622857,1705265557645,-541.15,0.00034246,2]
[311622858,1705265557655,-746.49,0.00034246,2]
[311622859,1705265557665,-500.0,0.00034246,2]
[311622860,1705265557678,-7127.94,0.00034246,2]
[311622861,1705265557688,-727.08,0.00034246,2]
[311622862,1705265557698,-918.26,0.00034246,2]
[311622863,1705265557709,-2334.97,0.00034246,2]
[311622864,1705265557719,-571.94,0.00034246,2]
[311622865,1705265557728,-520.99,0.00034246,2]
[311622866,1705265557738,-1278.08,0.00034246,2]
[311622867,1705265557749,-500.0,0.00034246,2]
[311622868,1705265557758,-500.0,0.00034246,2]
[311622869,1705265557768,-1335.19,0.00034246,2]
[311622870,1705265557781,-507.96,0.00034246,2]
[311622871,1705265557792,-682.65,0.00034246,2]
[311622872,1705265557802,-2191.12,0.00034246,2]
[311622873,1705265557811,-1823.86,0.00034246,2]
[311622874,1705265557822,-566.33,0.00034246,2]
[311622875,1705265557832,-602.37,0.00034246,2]
[311622876,1705265557842,-651.64,0.00034246,2]
[311622877,1705265557853,-883.91,0.00034246,2]
[311622878,1705265557862,-2214.32,0.00034246,2]
[311622879,1705265557872,-14316.0,0.00034246,2]
[311622880,1705265557883,-1750.64,0.00034246,2]
[311622881,1705265557892,-875.93,0.00034246,2]
[311622882,1705265557902,-500.0,0.00034246,2]
[311622883,1705265557913,-596.16,0.00034246,2]
[311622884,1705265557924,-846.65,0.00034246,2]
[311622885,1705265557935,-753.89,0.00034246,2]
[311622886,1705265557945,-1849.03,0.00034246,2]
[311622887,1705265557955,-500.0,0.00034246,2]
[311622888,1705265557965,-1112.66,0.00034246,2]
[311622889,1705265557974,-1725.14,0.00034246,2]
[311622890,1705265557984,-500.0,0.00034246,2]
[311622891,1705265557994,-796.33,0.00034246,2]
[311622892,1705265558004,-899.24,0.00034246,2]
[311622893,1705265558014,-808.86,0.00034246,2]
[311622894,1705265558025,-1429.98,0.00034246,2]
[311622895,1705265558035,-500.0,0.00034246,2]
[311622896,1705265558045,-524.71,0.00034246,2]
[311622897,1705265558055,-542.40505849,0.00034246,2]
[311622898,1705265558066,-1713.52,0.00034246,2]
[311622899,1705265558076,-1102.84,0.00034246,2]
[311622900,1705265558087,-1618.96,0.00034246,2]
[311622901,1705265558097,-1116.72,0.00034246,2]
[311622902,1705265558107,-2696.94,0.00034246,2]
[311622903,1705265558117,-500.0,0.00034246,2]
[311622904,1705265558127,-794.76,0.00034246,2]
[311622905,1705265558137,-500.0,0.00034246,2]
[311622906,1705265558147,-500.0,0.00034246,2]
[311622907,1705265558157,-724.53,0.00034246,2]
[311622908,1705265558167,-1597.13,0.00034246,2]
[311622909,1705265558177,-737.29,0.00034246,2]
[311622910,1705265558187,-622.57,0.00034246,2]
[311622911,1705265558197,-500.0,0.00034246,2]
[311622912,1705265558208,-1009.68,0.00034246,2]
[311622913,1705265558217,-640.35,0.00034246,2]
[311622914,1705265558227,-500.0,0.00034246,2]
[311622915,1705265558237,-1595.29,0.00034246,2]
[311622916,1705265558247,-500.0,0.00034246,2]
[311622917,1705265558257,-917.26,0.00034246,2]
[311622918,1705265558266,-565.13,0.00034246,2]
[311622919,1705265558400,-2100.41,0.00034246,2]
[311622920,1705265558409,-4300.16,0.00034246,2]
[311622921,1705265558419,-1007.56,0.00034246,2]
[311622922,1705265558430,-776.73,0.00034246,2]
[311622923,1705265558440,-500.0,0.00034246,2]
[311622924,1705265558449,-5057.58,0.00034246,2]
[311622925,1705265558459,-500.0,0.00034246,2]
[311622926,1705265558470,-933.45,0.00034246,2]
[311622927,1705265558479,-531.05,0.00034246,2]
[311622928,1705265558488,-233.45931112,0.00034246,2]
[311622929,1705265558498,-1593.77,0.00034246,2]
[311622930,1705265558507,-720.02,0.00034246,2]
[311622931,1705265558517,-500.0,0.00034246,5]
[311622932,1705265558527,-1573.4,0.00034246,2]
[311622933,1705265558537,-500.0,0.00034246,2]
[311622934,1705265558547,-4742.8,0.00034246,2]
[311622935,1705265558556,-500.0,0.00034246,2]
[311622936,1705265558566,-500.0,0.00034246,2]
[311622937,1705265558576,-332.22,0.00034246,2]
[311622938,1705265558586,-3392.17,0.00034246,2]
[311622939,1705265558596,-881.88,0.00034246,2]
[311622940,1705265558605,-3302.73,0.00034246,2]
[311622941,1705265558615,-1145.63,0.00034246,2]
[311622942,1705265558625,-755.87,0.00034246,2]
[311622943,1705265558635,-500.0,0.00034246,2]
[311622944,1705265558644,-3349.66,0.00034246,2]
[311622945,1705265558653,-911.19,0.00034246,2]
[311622946,1705265558663,-699.61,0.00034246,2]
[311622947,1705265558673,-500.0,0.00034246,2]
[311622948,1705265558683,-9373.54,0.00034246,2]
[311622949,1705265558693,-563.79,0.00034246,2]
[311622950,1705265558703,-1392.74,0.00034246,2]
[311622951,1705265558713,-500.0,0.00034246,2]
[311622952,1705265558722,-580.88,0.00034246,2]
[311622953,1705265558731,-1446.11,0.00034246,2]
[311622954,1705265558741,-9954.34,0.00034246,2]
[311622955,1705265558750,-1674.87,0.00034246,2]
[311622956,1705265558760,-2675.53,0.00034246,2]
[311622957,1705265558771,-638.69,0.00034246,2]
[311622958,1705265558784,-609.69,0.00034246,2]
[311622959,1705265558793,-5600.69,0.00034246,2]
[311622960,1705265558802,-541.21,0.00034246,2]
[311622961,1705265558812,-830.84,0.00034246,2]
[311622962,1705265558822,-2246.95,0.00034246,2]
[311622963,1705265558831,-1402.19,0.00034246,2]
[311622964,1705265558841,-924.51,0.00034246,2]
[311622965,1705265558850,-3335.08,0.00034246,2]
[311622966,1705265558861,-10595.33,0.00034246,2]
[311622967,1705265558871,-500.0,0.00034246,2]
[311622968,1705265558880,-836.16,0.00034246,2]
[311622969,1705265558890,-500.0,0.00034246,2]
[311622970,1705265558900,-646.01,0.00034246,2]
[311622971,1705265558909,-500.0,0.00034246,2]
[311622972,1705265558919,-500.0,0.00034246,2]
[311622973,1705265558929,-500.0,0.00034246,2]
[311622974,1705265558938,-500.0,0.00034246,2]
[311622975,1705265558948,-500.0,0.00034246,2]
[311622976,1705265558957,-1637.96,0.00034246,2]
[311622977,1705265558967,-500.0,0.00034246,2]
[311622978,1705265558976,-3225.32,0.00034246,2]
[311622979,1705265558986,-3401.5,0.00034246,2]
[311622980,1705265558996,-699.52,0.00034246,2]
[311622981,1705265559006,-1658.41,0.00034246,2]
[311622982,1705265559016,-500.0,0.00034246,2]
[311622983,1705265559026,-898.47,0.00034246,2]
[311622984,1705265559035,-747.38,0.00034246,2]
[311622985,1705265559045,-502.0,0.00034246,2]
[311622986,1705265559054,-3294.26,0.00034246,2]
[311622987,1705265559063,-781.12,0.00034246,2]
[311622988,1705265559072,-2934.21,0.00034246,2]
[311622989,1705265559081,-28330.08,0.00034246,2]
[311622990,1705265559090,-1324.02,0.00034246,2]
[311622991,1705265559100,-500.0,0.00034246,2]
[311622992,1705265559110,-915.45,0.00034246,2]
[311622993,1705265559119,-1385.96,0.00034246,2]
[311622994,1705265559129,-2258.81,0.00034246,2]
[311622995,1705265559139,-509.43,0.00034246,2]
[311622996,1705265559149,-993.95,0.00034246,2]
[311622997,1705265559158,-630.07,0.00034246,2]
[311622998,1705265559168,-247.42768922,0.00034246,2]
[311622999,1705265559178,-663.38,0.00034246,2]
[311623000,1705265559188,-534.75,0.00034246,2]
[311623001,1705265559198,-7238.69,0.00034246,2]
[311623002,1705265559207,-2077.72,0.00034246,2]
[311623003,1705265559217,-1376.21,0.00034246,2]
[311623004,1705265559226,-500.0,0.00034246,2]
[311623005,1705265559236,-1332.9,0.00034246,2]
[311623006,1705265559246,-500.0,0.00034246,2]
[311623007,1705265559256,-1108.32,0.00034246,2]
[311623008,1705265559266,-560.24,0.00034246,2]
[311623009,1705265559276,-691.92,0.00034246,2]
[311623010,1705265559285,-500.0,0.00034246,2]
[311623011,1705265559295,-917.54,0.00034246,2]
[311623012,1705265559305,-644.63,0.00034246,2]
[311623013,1705265559314,-500.0,0.00034246,2]
[311623014,1705265559324,-4169.87,0.00034246,2]
[311623015,1705265559333,-503.48,0.00034246,2]
[311623016,1705265559343,-810.05,0.00034246,2]
[311623017,1705265559353,-799.56,0.00034246,2]
[311623018,1705265559363,-500.0,0.00034246,2]
[311623019,1705265559373,-767.29,0.00034246,2]
[311623020,1705265559382,-907.45,0.00034246,2]
[311623021,1705265559392,-733.07,0.00034246,2]
[311623022,1705265559402,-500.0,0.00034246,2]
[311623023,1705265559413,-6057.77,0.00034246,2]
[311623024,1705265559423,-1447.4,0.00034246,2]
[311623025,1705265559432,-1557.23,0.00034246,2]
[311623026,1705265559442,-1520.88,0.00034246,2]
[311623027,1705265559453,-500.0,0.00034246,2]
[311623028,1705265559463,-1561.7,0.00034246,2]
[311623029,1705265559474,-16510.87,0.00034246,2]
[311623030,1705265559485,-2650.58,0.00034246,2]
[311623031,1705265559494,-503.29191364,0.00034246,2]
[311623032,1705265559503,-500.0,0.00034246,2]
[311623033,1705265559514,-587.88,0.00034246,2]
[311623034,1705265559523,-1302.74,0.00034246,2]
[311623035,1705265559533,-1648.36,0.00034246,2]
[311623036,1705265559543,-3126.96,0.00034246,2]
[311623037,1705265559552,-500.0,0.00034246,2]
[311623038,1705265559561,-1892.55,0.00034246,2]
[311623039,1705265559572,-500.0,0.00034246,2]
[311623040,1705265559582,-3105.59,0.00034246,2]
[311623041,1705265559592,-8950.09,0.00034246,2]
[311623042,1705265559603,-1582.78,0.00034246,2]
[311623043,1705265559612,-1119.58,0.00034246,2]
[311623044,1705265559622,-810.88,0.00034246,2]
[311623045,1705265559632,-925.46,0.00034246,2]
[311623046,1705265559642,-1362.22,0.00034246,2]
[311623047,1705265559651,-1419.16,0.00034246,2]
[311623048,1705265559661,-840.38,0.00034246,2]
[311623049,1705265559671,-500.0,0.00034246,2]
[311623050,1705265559681,-1153.75,0.00034246,2]
[311623051,1705265559691,-965.13,0.00034246,2]
[311623052,1705265559701,-707.1,0.00034246,2]
[311623053,1705265559710,-500.0,0.00034246,2]
[311623054,1705265559720,-500.0,0.00034246,2]
[311623055,1705265559730,-736.07,0.00034246,2]
[311623056,1705265559739,-1354.92,0.00034246,2]
[311623057,1705265559749,-622.53,0.00034246,2]
[311623058,1705265559759,-5875.67,0.00034246,2]
[311623059,1705265559768,-836.71,0.00034246,2]
[311623060,1705265559780,-784.6,0.00034246,2]
[311623061,1705265559789,-3535.86,0.00034246,2]
[311623062,1705265559799,-1339.45,0.00034246,2]
[311623063,1705265559808,-726.02,0.00034246,2]
[311623064,1705265559820,-2000.77,0.00034246,2]
[311623065,1705265559829,-772.02,0.00034246,2]
[311623066,1705265559838,-4196.76,0.00034246,2]
[311623067,1705265559847,-874.57,0.00034246,2]
[311623068,1705265559856,-1070.23,0.00034246,2]
[311623069,1705265559866,-563.09,0.00034246,2]
[311623070,1705265559875,-500.0,0.00034246,2]
[311623071,1705265559884,-803.67,0.00034246,2]
[311623072,1705265559893,-869.2,0.00034246,2]
[311623073,1705265559902,-500.0,0.00034246,2]
[311623074,1705265559912,-500.0,0.00034246,2]
[311623075,1705265559921,-581.19,0.00034246,2]
[311623076,1705265559930,-2946.84,0.00034246,2]
[311623077,1705265559939,-969.9,0.00034246,2]
[311623078,1705265559948,-711.01,0.00034246,2]
[311623079,1705265559957,-1464.74,0.00034246,2]
[311623080,1705265559967,-552.27,0.00034246,2]
[311623081,1705265559976,-633.03,0.00034246,2]
[311623082,1705265559985,-1928.32,0.00034246,2]
[311623083,1705265559995,-1643.12,0.00034246,2]
[311623084,1705265560004,-1109.23,0.00034246,2]
[311623085,1705265560014,-1980.27,0.00034246,2]
[311623086,1705265560023,-1413.08,0.00034246,2]
[311623087,1705265560032,-503.28,0.00034246,2]
[311623088,1705265560042,-500.0,0.00034246,2]
[311623089,1705265560051,-532.18,0.00034246,2]
[311623090,1705265560060,-710.77,0.00034246,2]
[311623091,1705265560069,-560.65,0.00034246,2]
[311623092,1705265560079,-1886.92,0.00034246,2]
[311623093,1705265560088,-500.0,0.00034246,2]
[311623094,1705265560098,-848.62,0.00034246,2]
[311623095,1705265560107,-4590.19,0.00034246,2]
[311623096,1705265560117,-610.95,0.00034246,2]
[311623097,1705265560126,-567.58,0.00034246,2]
[311623098,1705265560135,-500.0,0.00034246,2]
[311623099,1705265560144,-10662.24268591,0.000343,2]
[311623100,1705265560153,-1000.0,0.000343,2]
[311623101,1705265560162,-1000.0,0.000343,2]
[311623102,1705265560172,-500.0,0.00034362,2]
[311623103,1705265560181,-16284.26621747,0.000344,2]
[311623104,1705265560190,-152.0,0.00034406,4]
[311623105,1705265560200,-500.0,0.00034423,2]
[311623106,1705265560209,-250.0,0.000345,2]
[311623107,1705265560218,-250.0,0.000345,2]
[311623108,1705265560227,-432.7,0.000345,2]
[311623109,1705265560237,-500.0,0.000345,4]
[311623110,1705265560246,-250.0,0.000345,2]
[311623111,1705265560255,-3192.02618612,0.000345,19]
[311623112,1705265560265,-344.598704,0.0003452,2]
[311623113,1705265560274,-2798.166957,0.0003452,2]
[311623114,1705265560284,-1058.646696,0.0003452,2]
[311623115,1705265560293,-9793.584349,0.0003452,2]
[311623116,1705265560303,-2067.592223,0.0003452,2]
[311623117,1705265560312,-16789.001742,0.0003452,2]
[311623118,1705265560321,-1378.394815,0.0003452,2]
[311623119,1705265560330,-11192.667828,0.0003452,2]
[311623120,1705265560340,-333.82628,0.0003452,2]
[311623121,1705265560349,-2096.890911,0.0003452,2]
[311623122,1705265560358,-1677.512729,0.0003452,2]
[311623123,1705265560367,-3941.933873,0.0003452,2]
[311623124,1705265560376,-801.183073,0.0003452,2]
[311623125,1705265560385,-1090.604314,0.0003452,2]
[311623126,1705265560395,-382.683188,0.0003452,2]
[311623127,1705265560404,-306.146551,0.0003452,2]
[311623128,1705265560413,-382.683188,0.0003452,2]
[311623129,1705265560424,-500.0,0.0003452,2]
[311623130,1705265560433,-500.0,0.0003452,2]
[311623131,1705265560442,-340.77858583,0.0003452,2]
[311623132,1705265560452,-500.0,0.0003452,2]
[311623133,1705265560461,-528.74,0.0003452,2]
[311623134,1705265560471,-502.48,0.0003452,2]
[311623135,1705265560480,-500.0,0.0003452,2]
[311623136,1705265560490,-576.6251248,0.0003452,2]
[311623137,1705265560499,-770.53,0.0003452,2]
[311623138,1705265560508,-500.0,0.0003452,2]
[311623139,1705265560517,-926.02,0.0003452,2]
[311623140,1705265560802,-1147.85,0.0003452,2]
[311623141,1705265560817,-500.0,0.0003452,2]
[311623142,1705265560827,-500.0,0.0003452,2]
[311623143,1705265560837,-541.41,0.0003452,2]
[311623144,1705265560846,-500.0,0.0003452,2]
[311623145,1705265560858,-500.0,0.0003452,2]
[311623146,1705265560868,-500.0,0.0003452,2]
[311623147,1705265560877,-709.9,0.0003452,2]
[311623148,1705265560886,-500.0,0.0003452,2]
[311623149,1705265560895,-500.0,0.0003452,2]
[311623150,1705265560905,-656.39,0.0003452,2]
[311623151,1705265560914,-500.0,0.0003452,2]
[311623152,1705265560924,-500.0,0.0003452,2]
[311623153,1705265560933,-500.0,0.0003452,2]
[311623154,1705265560942,-585.77,0.0003452,2]
[311623155,1705265560952,-335.91372544,0.0003452,2]
[311623156,1705265560961,-646.67,0.0003452,2]
[311623157,1705265560971,-500.0,0.0003452,2]
[311623158,1705265560980,-500.0,0.0003452,2]
[311623159,1705265560990,-518.76,0.0003452,2]
[311623160,1705265560999,-500.0,0.0003452,2]
[311623161,1705265561009,-388.52778604,0.0003452,2]
[311623162,1705265561019,-453.53256648,0.0003452,2]
[311623163,1705265561029,-673.27,0.0003452,2]
[311623164,1705265561038,-653.68,0.0003452,2]
[311623165,1705265561047,-640.51,0.0003452,2]
[311623166,1705265561057,-595.86,0.0003452,2]
[311623167,1705265561067,-565.95,0.0003452,2]
[311623168,1705265561076,-221.04372228,0.0003452,2]
[311623169,1705265561086,-645.55,0.0003452,2]
[311623170,1705265561095,-588.78,0.0003452,2]
[311623171,1705265561105,-683.34,0.0003452,2]
[311623172,1705265561114,-551.22,0.0003452,2]
[311623173,1705265561124,-500.0,0.0003452,2]
[311623174,1705265561134,-594.67,0.0003452,2]
[311623175,1705265561143,-500.0,0.0003452,2]
[311623176,1705265561153,-963.4,0.0003452,2]
[311623177,1705265561162,-601.15,0.0003452,2]
[311623178,1705265561172,-665.95,0.0003452,2]
[311623179,1705265561182,-500.0,0.0003452,2]
[311623180,1705265561192,-800.79,0.0003452,2]
[311623181,1705265561201,-562.08,0.0003452,2]
[311623182,1705265561212,-626.87,0.0003452,2]
[311623183,1705265561221,-523.80489166,0.0003452,2]
[311623184,1705265561230,-727.57,0.0003452,2]
[311623185,1705265561239,-560.21,0.0003452,2]
[311623186,1705265561249,-500.0,0.0003452,2]
[311623187,1705265561259,-982.04,0.0003452,2]
[311623188,1705265561269,-600.07,0.0003452,2]
[311623189,1705265561279,-1048.4,0.0003452,2]
[311623190,1705265561288,-500.0,0.0003452,2]
[311623191,1705265561298,-500.0,0.0003452,2]
[311623192,1705265561308,-950.82,0.0003452,2]
[311623193,1705265561317,-775.5,0.0003452,2]
[311623194,1705265561326,-500.0,0.0003452,2]
[311623195,1705265561336,-806.58,0.0003452,2]
[311623196,1705265561346,-748.97,0.0003452,2]
[311623197,1705265561356,-500.0,0.0003452,2]
[311623198,1705265561366,-500.0,0.0003452,2]
[311623199,1705265561376,-544.49,0.0003452,2]
[311623200,1705265561385,-500.0,0.0003452,2]
[311623201,1705265561396,-449.7,0.0003452,2]
[311623202,1705265561405,-500.0,0.0003452,2]
[311623203,1705265561416,-671.61,0.0003452,2]
[311623204,1705265561428,-500.0,0.0003452,2]
[311623205,1705265561438,-525.76274619,0.0003452,2]
[311623206,1705265561448,-602.2,0.0003452,2]
[311623207,1705265561459,-769.86,0.0003452,2]
[311623208,1705265561470,-500.0,0.0003452,2]
[311623209,1705265561481,-500.0,0.0003452,2]
[311623210,1705265561491,-583.56943669,0.0003452,2]
[311623211,1705265561501,-500.0,0.0003452,2]
[311623212,1705265561510,-442.25847427,0.0003452,2]
[311623213,1705265561520,-222.67421881,0.0003452,2]
[311623214,1705265561530,-692.82,0.0003452,2]
[311623215,1705265561540,-507.31,0.0003452,2]
[311623216,1705265561550,-500.0,0.0003452,2]
[311623217,1705265561560,-500.0,0.0003452,2]
[311623218,1705265561569,-729.84,0.0003452,2]
[311623219,1705265561578,-536.68,0.0003452,2]
[311623220,1705265561589,-583.46,0.0003452,2]
[311623221,1705265561598,-500.0,0.0003452,2]
[311623222,1705265561608,-500.0,0.0003452,2]
[311623223,1705265561617,-1000.1,0.0003452,2]
[311623224,1705265561626,-500.0,0.0003452,2]
[311623225,1705265561636,-702.71,0.0003452,2]
[311623226,1705265561645,-500.0,0.0003452,2]
[311623227,1705265561655,-793.74,0.0003452,2]
[311623228,1705265561665,-923.77,0.0003452,2]
[311623229,1705265561674,-500.0,0.0003452,2]
[311623230,1705265561684,-500.0,0.0003452,2]
[311623231,1705265561694,-629.36,0.0003452,2]
[311623232,1705265561704,-500.0,0.0003452,2]
[311623233,1705265561714,-867.3,0.0003452,2]
[311623234,1705265561724,-500.0,0.0003452,2]
[311623235,1705265561733,-500.0,0.0003452,2]
[311623236,1705265561743,-581.81,0.0003452,2]
[311623237,1705265561753,-624.05,0.0003452,2]
[311623238,1705265561765,-830.39,0.0003452,2]
[311623239,1705265561775,-677.4,0.0003452,2]
[311623240,1705265561786,-1100.99,0.0003452,2]
[311623241,1705265561796,-500.0,0.0003452,2]
[311623242,1705265561806,-525.17,0.0003452,2]
[311623243,1705265561817,-586.11,0.0003452,2]
[311623244,1705265561826,-500.0,0.0003452,2]
[311623245,1705265561836,-500.0,0.0003452,2]
[311623246,1705265561846,-1229.11,0.0003452,2]
[311623247,1705265561856,-1106.76,0.0003452,2]
[311623248,1705265561866,-500.0,0.0003452,2]
[311623249,1705265561876,-500.0,0.0003452,2]
[311623250,1705265561886,-894.93,0.0003452,2]
[311623251,1705265561895,-608.9,0.0003452,2]
[311623252,1705265561905,-500.0,0.0003452,2]
[311623253,1705265561915,-946.64,0.0003452,2]
[311623254,1705265561925,-500.0,0.0003452,2]
[311623255,1705265561934,-619.49,0.0003452,2]
[311623256,1705265561944,-868.77,0.0003452,2]
[311623257,1705265561953,-500.0,0.0003452,2]
[311623258,1705265561962,-500.0,0.0003452,2]
[311623259,1705265561971,-500.0,0.0003452,2]
[311623260,1705265561980,-376.43981671,0.0003452,2]
[311623261,1705265561989,-578.25,0.0003452,2]
[311623262,1705265561999,-532.95,0.0003452,2]
[311623263,1705265562008,-1204.84,0.0003452,2]
[311623264,1705265562018,-545.29,0.0003452,2]
[311623265,1705265562027,-500.0,0.0003452,2]
[311623266,1705265562036,-670.63,0.0003452,2]
[311623267,1705265562045,-523.04,0.0003452,2]
[311623268,1705265562054,-500.0,0.0003452,2]
[311623269,1705265562065,-500.0,0.0003452,2]
[311623270,1705265562074,-636.75,0.0003452,2]
[311623271,1705265562084,-596.02,0.0003452,2]
[311623272,1705265562093,-1015.13,0.0003452,2]
[311623273,1705265562103,-500.0,0.0003452,2]
[311623274,1705265562112,-1744.35,0.0003452,2]
[311623275,1705265562122,-851.16,0.0003452,2]
[311623276,1705265562132,-536.9,0.0003452,2]
[311623277,1705265562141,-846.45,0.0003452,2]
[311623278,1705265562151,-500.0,0.0003452,2]
[311623279,1705265562161,-607.07,0.0003452,2]
[311623280,1705265562171,-500.0,0.0003452,2]
[311623281,1705265562181,-1022.21,0.0003452,2]
[311623282,1705265562191,-797.3,0.0003452,2]
[311623283,1705265562200,-496.68302115,0.0003452,2]
[311623284,1705265562210,-560.52,0.0003452,2]
[311623285,1705265562219,-546.08,0.0003452,2]
[311623286,1705265562228,-1547.25,0.0003452,2]
[311623287,1705265562238,-715.62,0.0003452,2]
[311623288,1705265562247,-500.0,0.0003452,2]
[311623289,1705265562257,-900.1,0.0003452,2]
[311623290,1705265562267,-500.0,0.0003452,2]
[311623291,1705265562276,-500.0,0.0003452,2]
[311623292,1705265562286,-1245.22,0.0003452,2]
[311623293,1705265562295,-2718.67,0.0003452,2]
[311623294,1705265562305,-679.75,0.0003452,2]
[311623295,1705265562315,-1251.06,0.0003452,2]
[311623296,1705265562324,-650.18,0.0003452,2]
[311623297,1705265562334,-500.0,0.0003452,2]
[311623298,1705265562345,-983.25,0.0003452,2]
[311623299,1705265562354,-2249.92,0.0003452,2]
[311623300,1705265562364,-500.0,0.0003452,2]
[311623301,1705265562373,-595.82,0.0003452,2]
[311623302,1705265562382,-500.0,0.0003452,2]
[311623303,1705265562392,-1879.49,0.0003452,2]
[311623304,1705265562401,-979.35,0.0003452,2]
[311623305,1705265562411,-645.75,0.0003452,2]
[311623306,1705265562421,-629.35,0.0003452,2]
[311623307,1705265562431,-689.93,0.0003452,2]
[311623308,1705265562440,-905.95,0.0003452,2]
[311623309,1705265562449,-669.74,0.0003452,2]
[311623310,1705265562459,-658.52,0.0003452,2]
[311623311,1705265562469,-500.0,0.0003452,2]
[311623312,1705265562479,-213.28122111,0.0003452,2]
[311623313,1705265562489,-1000.92,0.0003452,2]
[311623314,1705265562499,-584.45,0.0003452,2]
[311623315,1705265562508,-500.0,0.0003452,2]
[311623316,1705265562519,-500.0,0.0003452,2]
[311623317,1705265562528,-596.4,0.0003452,2]
[311623318,1705265562538,-675.0,0.0003452,2]
[311623319,1705265562548,-500.0,0.0003452,2]
[311623320,1705265562557,-500.0,0.0003452,2]
[311623321,1705265562567,-679.48,0.0003452,2]
[311623322,1705265562577,-886.22,0.0003452,2]
[311623323,1705265562587,-698.99,0.0003452,2]
[311623324,1705265562597,-567.27,0.0003452,2]
[311623325,1705265562606,-1207.58,0.0003452,2]
[311623326,1705265562616,-692.03,0.0003452,2]
[311623327,1705265562625,-4337.15,0.0003452,2]
[311623328,1705265562635,-1455.02,0.0003452,2]
[311623329,1705265562644,-718.79,0.0003452,2]
[311623330,1705265562654,-852.88,0.0003452,2]
[311623331,1705265562664,-500.0,0.0003452,2]
[311623332,1705265562673,-399.75697099,0.0003452,2]
[311623333,1705265562683,-500.0,0.0003452,2]
[311623334,1705265562693,-902.9,0.0003452,2]
[311623335,1705265562703,-500.0,0.0003452,2]
[311623336,1705265562712,-500.0,0.0003452,5]
[311623337,1705265562722,-541.15,0.0003452,2]